{"text_format":"1","workbook":"xlsx","n_sheets":9,"sheets":["Analyse BES Études faisabilité","Analyse de profession","Norme, PAMT ou hors PAMT","Promotion Normes","RCMO","Formation","Compagnon independant","SOMMAIRE","Instructions"],"not_rendered":{"charts":0,"images":0,"macros":0,"external_links":0,"defined_names":4,"comments":6,"pivot_tables":0},"unopened":[],"bounds":{"document_bytes":16777216,"sheet_cells":100000,"rows_first":2000,"rows_last":500,"rows_between":2000,"halvings":0,"cell_chars":16384,"cell_head_chars":4096},"cells_cut":0,"cells_raw":0,"read":"whole","date_system":"1900"}

{"sheet":"Analyse BES Études faisabilité","index":0,"n_rows":33,"n_cols":10,"rows_kept":33,"cut":false,"hidden":false,"merged":[[0,0,0,9],[2,0,2,1]]}
["Budget de la demande de subvention - Titre du projet"]
["Nature de la dépense","Description de la dépense","Barèmes","Coût unitaire","Unité","Unité","Unité","Taxes (100 % des taxes)","Montant demandé","Montant proposé"]
["Production d'une analyse de besoins ou d'une étude de faisabilité "]
["Honoraires et salaires"]
["Honoraires professionnels pour la planification et la réalisation d'une analyse de besoin ou d'une étude de faisabilité, la rédaction et la validation de la documentation produite",null,"Maximum de 150 $/h",null,null,null,null,{"$f":"0.14975*(D5*E5*F5*G5)","v":0},{"$f":"D5*E5*F5*G5","v":0},{"$f":"D5*E5*F5*G5","v":0}]
["Honoraires professionnels pour la planification et la réalisation d'une actualisation, la rédaction et la validation du rapport",null,"Maximum de 150 $/h",null,null,null,null,{"$f":"0.14975*(D6*E6*F6*G6)","v":0},{"$f":"D6*E6*F6*G6","v":0},{"$f":"D6*E6*F6*G6","v":0}]
["Honoraires professionnels et salaires compensatoires des experts",null,"Maximum de 150 $/h",null,null,null,null,null,0,0]
["Révision linguistique de l'analyse ou de l'étude ",null,"Coût réel",null,null,null,null,{"$f":"0.14975*(D8*E8*F8*G8)","v":0},0,0]
["Frais de graphisme",null,"Coût réel",null,null,null,null,{"$f":"0.14975*(D9*E9*F9*G9)","v":0},0,0]
["Déplacement"]
["Déplacement des experts",null,"Barèmes du Conseil du trésor",null,null,null,null,null,{"$f":"D11*E11*F11*G11","v":0},{"$f":"D11*E11*F11*G11","v":0}]
["Déplacement du consultant",null,"Barèmes du Conseil du trésor",null,null,null,null,null,{"$f":"D12*E12*F12*G12","v":0},{"$f":"D12*E12*F12*G12","v":0}]
["Autres frais de déplacement (à spécifier)",null,"Barèmes du Conseil du trésor",null,null,null,null,{"$f":"0.14975*(D13*E13*F13*G13)","v":0},0,0]
["Autres frais de déplacement (à spécifier)",null,"Barèmes du Conseil du trésor",null,null,null,null,{"$f":"0.14975*(D14*E14*F14*G14)","v":0},0,0]
["Hébergement"]
["Hébergement des experts",null,"Barèmes du Conseil du trésor",null,null,null,null,{"$f":"0.14975*(D16*E16*F16*G16)","v":0},{"$f":"D16*E16*F16*G16","v":0},{"$f":"D16*E16*F16*G16","v":0}]
["Hébergement des consultants",null,"Barèmes du Conseil du trésor",null,null,null,null,{"$f":"0.14975*(D17*E17*F17*G17)","v":0},{"$f":"D17*E17*F17*G17","v":0},{"$f":"D17*E17*F17*G17","v":0}]
["Autres frais d'hébergement (à spécifier)",null,"Barèmes du Conseil du trésor",null,null,null,null,{"$f":"0.14975*(D18*E18*F18*G18)","v":0},0,0]
["Matériel"]
["Frais d'impression",null,"Coût réel",null,null,null,null,{"$f":"0.14975*(D20*E20*F20*G20)","v":0},{"$f":"D20*E20*F20*G20","v":0},{"$f":"D20*E20*F20*G20","v":0}]
["Autres frais de matériel (à spécifier)",null,"Coût réel",null,null,null,null,{"$f":"0.14975*(D21*E21*F21*G21)","v":0},{"$f":"D21*E21*F21*G21","v":0},{"$f":"D21*E21*F21*G21","v":0}]
["Autres dépenses liées à la réalisation du projet "]
["Location de salle incluant le matériel audiovisuel",null,"Coût réel",null,null,null,null,{"$f":"0.14975*(D23*E23*F23*G23)","v":0},{"$f":"D23*E23*F23*G23","v":0},{"$f":"D23*E23*F23*G23","v":0}]
["Location d'équipements",null,"Coût réel",null,null,null,null,0,{"$f":"D24*E24*F24*G24","v":0},{"$f":"D24*E24*F24*G24","v":0}]
["Autres dépenses (à spécifier)",null,"Coût réel",null,null,null,null,0,0,0]
["Dépenses liées à l'administration du projet par le promoteur"]
["Salaire de base de la ressource interne du promoteur",null,"Maximum de 90 000 $ annuellement par personne",null,null,null,null,null,{"$f":"D27*E27*F27*G27","v":0},{"$f":"D27*E27*F27*G27","v":0}]
["Déplacement de la ressource interne du promoteur",null,"Barèmes du Conseil du trésor",null,null,null,null,null,{"$f":"D28*E28*F28*G28","v":0},{"$f":"D28*E28*F28*G28","v":0}]
["Hébergement de la ressource interne du promoteur",null,"Barèmes du Conseil du trésor",null,null,null,null,{"$f":"0.14975*(D29*E29*F29*G29)","v":0},0,0]
["Frais d'administration (maximum 10 % du montant admissible)",null,null,null,null,null,null,null,{"$f":"SUM(I5:I29)*0.1","v":0},{"$f":"SUM(J5:J29)*0.1","v":0}]
["Taxes"]
["Remboursement des taxes admissibles",null,null,null,null,null,null,{"$f":"SUM(H5:H30)","v":0},{"$f":"H32*0.5","v":0},{"$f":"H32*0.5","v":0}]
["Total",null,null,null,null,null,null,null,{"$f":"SUM(I5:I32)","v":0},{"$f":"SUM(J5:J32)","v":0}]

{"sheet":"Analyse de profession","index":1,"n_rows":33,"n_cols":10,"rows_kept":33,"cut":false,"hidden":false,"merged":[[0,0,0,9]]}
["Budget de la demande de subvention - Titre du projet"]
["Nature de la dépense","Description de la dépense","Barèmes","Coût unitaire","Unité","Unité","Unité","Taxes (100 % des taxes)","Montant demandé","Montant proposé"]
["Élaboration ou révision d'une  analyse de profession "]
["Honoraires et salaires"]
["Honoraires professionnels pour la planification et la réalisation d'une nouvelle analyse, la rédaction et la validation du rapport",null,"Maximum de 150 $/h",null,null,null,null,{"$f":"0.14975*(D5*E5*F5*G5)","v":0},{"$f":"D5*E5*F5*G5","v":0},{"$f":"D5*E5*F5*G5","v":0}]
["Honoraires professionnels pour la planification et la réalisation d'une actualisation, la rédaction et la validation du rapport",null,"Maximum de 150 $/h",null,null,null,null,{"$f":"0.14975*(D6*E6*F6*G6)","v":0},{"$f":"D6*E6*F6*G6","v":0},{"$f":"D6*E6*F6*G6","v":0}]
["Honoraires professionnels et salaires compensatoires des experts",null,"Maximum de 150 $/h",null,null,null,null,null,0,0]
["Révision linguistique du rapport",null,"Coût réel",null,null,null,null,{"$f":"0.14975*(D8*E8*F8*G8)","v":0},0,0]
["Déplacement"]
["Déplacement des experts",null,"Barèmes du Conseil du trésor",null,null,null,null,null,{"$f":"D10*E10*F10*G10","v":0},{"$f":"D10*E10*F10*G10","v":0}]
["Déplacement des consultants",null,"Barèmes du Conseil du trésor",null,null,null,null,null,{"$f":"D11*E11*F11*G11","v":0},{"$f":"D11*E11*F11*G11","v":0}]
["Autres frais de déplacement (à spécifier)",null,"Barèmes du Conseil du trésor",null,null,null,null,{"$f":"0.14975*(D12*E12*F12*G12)","v":0},0,0]
["Autres frais de déplacement (à spécifier)",null,"Barèmes du Conseil du trésor",null,null,null,null,{"$f":"0.14975*(D13*E13*F13*G13)","v":0},0,0]
["Hébergement"]
["Hébergement des experts",null,"Barèmes du Conseil du trésor",null,null,null,null,{"$f":"0.14975*(D15*E15*F15*G15)","v":0},{"$f":"D15*E15*F15*G15","v":0},{"$f":"D15*E15*F15*G15","v":0}]
["Hébergement des consultants",null,"Barèmes du Conseil du trésor",null,null,null,null,{"$f":"0.14975*(D16*E16*F16*G16)","v":0},{"$f":"D16*E16*F16*G16","v":0},{"$f":"D16*E16*F16*G16","v":0}]
["Autres frais d'hébergement (à spécifier)",null,"Barèmes du Conseil du trésor",null,null,null,null,{"$f":"0.14975*(D17*E17*F17*G17)","v":0},0,0]
["Matériel"]
["Frais d'impression",null,"Coût réel",null,null,null,null,{"$f":"0.14975*(D19*E19*F19*G19)","v":0},{"$f":"D19*E19*F19*G19","v":0},{"$f":"D19*E19*F19*G19","v":0}]
["Autres frais de matériel (à spécifier)",null,"Coût réel",null,null,null,null,{"$f":"0.14975*(D20*E20*F20*G20)","v":0},{"$f":"D20*E20*F20*G20","v":0},{"$f":"D20*E20*F20*G20","v":0}]
["Autres frais de matériel (à spécifier)",null,"Coût réel",null,null,null,null,{"$f":"0.14975*(D21*E21*F21*G21)","v":0},0,0]
["Autres dépenses liées à la réalisation du projet "]
["Location de salle incluant le matériel audiovisuel",null,"Coût réel",null,null,null,null,{"$f":"0.14975*(D23*E23*F23*G23)","v":0},{"$f":"D23*E23*F23*G23","v":0},{"$f":"D23*E23*F23*G23","v":0}]
["Location d'équipements",null,"Coût réel",null,null,null,null,0,{"$f":"D24*E24*F24*G24","v":0},{"$f":"D24*E24*F24*G24","v":0}]
["Autres dépenses (à spécifier)",null,"Coût réel",null,null,null,null,0,0,0]
["Dépenses liées à l'administration du projet par le promoteur"]
["Salaire de base de la ressource interne du promoteur",null,"Maximum de 90 000 $ annuellement par personne",null,null,null,null,null,{"$f":"D27*E27*F27*G27","v":0},{"$f":"D27*E27*F27*G27","v":0}]
["Déplacement de la ressource interne du promoteur",null,"Barèmes du Conseil du trésor",null,null,null,null,null,{"$f":"D28*E28*F28*G28","v":0},{"$f":"D28*E28*F28*G28","v":0}]
["Hébergement de la ressource interne du promoteur",null,"Barèmes du Conseil du trésor",null,null,null,null,{"$f":"0.14975*(D29*E29*F29*G29)","v":0},0,0]
["Frais d'administration (maximum 10 % du montant admissible)",null,null,null,null,null,null,null,{"$f":"SUM(I5:I29)*0.1","v":0},{"$f":"SUM(J5:J29)*0.1","v":0}]
["Taxes"]
["Remboursement des taxes admissibles",null,null,null,null,null,null,{"$f":"SUM(H5:H31)","v":0},{"$f":"H32*0.5","v":0},{"$f":"H32*0.5","v":0}]
["Total",null,null,null,null,null,null,null,{"$f":"SUM(I5:I32)","v":0},{"$f":"SUM(J5:J32)","v":0}]

{"sheet":"Norme, PAMT ou hors PAMT","index":2,"n_rows":49,"n_cols":10,"rows_kept":49,"cut":false,"hidden":false,"merged":[[0,0,0,9],[14,0,14,1],[6,0,6,1],[2,0,2,1]]}
["Budget de la demande de subvention - Titre du projet"]
["Nature de la dépense","Description de la dépense","Barèmes","Coût unitaire","Unité","Unité","Unité","Taxes (100 % des taxes)","Montant demandé","Montant proposé"]
["Élaboration ou révision du profil de compétences, validation du profil"]
["Honoraires professionnels pour l'analyse de la documentation et l'élaboration du profil",null,"Maximum de 150 $/h",null,null,null,null,{"$f":"0.14975*(D4*E4*F4*G4)","v":0},{"$f":"D4*E4*F4*G4","v":0},{"$f":"D4*E4*F4*G4","v":0}]
["Honoraires professionnels pour la validation du profil et la rédaction finale",null,"Maximum de 150 $/h",null,null,null,null,{"$f":"0.14975*(D5*E5*F5*G5)","v":0},{"$f":"D5*E5*F5*G5","v":0},{"$f":"D5*E5*F5*G5","v":0}]
["Honoraires professionnels et salaires compensatoires des experts",null,"Maximum de 150 $/h",null,null,null,null,null,0,0]
["Élaboration ou révision de la norme professionnelle et consensus sectoriel"]
["Honoraires professionnels pour la rédaction de la norme",null,"Maximum de 150 $/h",null,null,null,null,{"$f":"0.14975*(D8*E8*F8*G8)","v":0},{"$f":"D8*E8*F8*G8","v":0},{"$f":"D8*E8*F8*G8","v":0}]
["Honoraires professionnels pour le consensus sectoriel",null,"Maximum de 150 $/h",null,null,null,null,{"$f":"0.14975*(D9*E9*F9*G9)","v":0},{"$f":"D9*E9*F9*G9","v":0},{"$f":"D9*E9*F9*G9","v":0}]
["Honoraires professionnels et salaires compensatoires des experts",null,"Maximum de 150 $/h",null,null,null,null,null,0,0]
["Élaboration ou révision des outils du PAMT"]
["Honoraires professionnels pour l'élaboration ou la révision du carnet d'apprentissage et du guide du compagnon",null,"Maximum de 150 $/h",null,null,null,null,{"$f":"0.14975*(D12*E12*F12*G12)","v":0},{"$f":"D12*E12*F12*G12","v":0},{"$f":"D12*E12*F12*G12","v":0}]
["Honoraires professionnels pour la validation des outils et  rédaction finale",null,"Maximum de 150 $/h",null,null,null,null,{"$f":"0.14975*(D13*E13*F13*G13)","v":0},{"$f":"D13*E13*F13*G13","v":0},{"$f":"D13*E13*F13*G13","v":0}]
["Honoraires professionnels et salaires compensatoires des experts",null,"Maximum de 150 $/h",null,null,null,null,null,0,0]
["Élaboration ou révision des outils hors PAMT ou hors production"]
["Honoraires professionnels pour l'élaboration ou la révision des outils hors PAMT ou hors production",null,"Maximum de 150 $/h",null,null,null,null,{"$f":"0.14975*(D16*E16*F16*G16)","v":0},{"$f":"D16*E16*F16*G16","v":0},{"$f":"D16*E16*F16*G16","v":0}]
["Honoraires professionnels pour la validation des outils hors PAMT ou hors production et la rédaction finale",null,"Maximum de 150 $/h",null,null,null,null,{"$f":"0.14975*(D17*E17*F17*G17)","v":0},{"$f":"D17*E17*F17*G17","v":0},{"$f":"D17*E17*F17*G17","v":0}]
["Honoraires professionnels et salaires compensatoires des experts",null,"Maximum de 150 $/h",null,null,null,null,null,0,0]
["Déplacement"]
["Déplacement des experts",null,"Barèmes du Conseil du trésor",null,null,null,null,null,{"$f":"D20*E20*F20*G20","v":0},{"$f":"D20*E20*F20*G20","v":0}]
["Déplacement du consultant",null,"Barèmes du Conseil du trésor",null,null,null,null,null,{"$f":"D21*E21*F21*G21","v":0},{"$f":"D21*E21*F21*G21","v":0}]
["Autres frais de déplacement (à spécifier)",null,"Barèmes du Conseil du trésor",null,null,null,null,{"$f":"0.14975*(D22*E22*F22*G22)","v":0},0,0]
["Autres frais de déplacement (à spécifier)",null,"Barèmes du Conseil du trésor",null,null,null,null,{"$f":"0.14975*(D23*E23*F23*G23)","v":0},0,0]
["Hébergement"]
["Hébergement des experts",null,"Barèmes du Conseil du trésor",null,null,null,null,{"$f":"0.14975*(D25*E25*F25*G25)","v":0},{"$f":"D25*E25*F25*G25","v":0},{"$f":"D25*E25*F25*G25","v":0}]
["Hébergement du consultant",null,"Barèmes du Conseil du trésor",null,null,null,null,{"$f":"0.14975*(D26*E26*F26*G26)","v":0},{"$f":"D26*E26*F26*G26","v":0},{"$f":"D26*E26*F26*G26","v":0}]
["Autres frais d'hébergement (à spécifier)",null,"Barèmes du Conseil du trésor",null,null,null,null,{"$f":"0.14975*(D27*E27*F27*G27)","v":0},0,0]
["Matériel pédagogique hors PAMT ou hors production"]
["Révision linguistique ",null,"Coût réel",null,null,null,null,{"$f":"0.14975*(D29*E29*F29*G29)","v":0},{"$f":"D29*E29*F29*G29","v":0},{"$f":"D29*E29*F29*G29","v":0}]
["Graphisme",null,"Coût réel",null,null,null,null,0,{"$f":"D30*E30*F30*G30","v":0},{"$f":"D30*E30*F30*G30","v":0}]
["Frais d'infographie ",null,"Coût réel",null,null,null,null,0,0,0]
["Frais d'impression ",null,"Coût réel",null,null,null,null,0,0,0]
["Autres frais liés au matériel pédagogique (à spécifier)",null,"Coût réel",null,null,null,null,0,0,0]
["Autres frais liés au matériel pédagogique (à spécifier)",null,"Coût réel",null,null,null,null,0,0,0]
["Autres frais liés au matériel pédagogique (à spécifier)",null,"Coût réel",null,null,null,null,0,0,0]
["Autres dépenses liées à la réalisation du projet "]
["Location de salle incluant le matériel audiovisuel",null,"Coût réel",null,null,null,null,{"$f":"0.14975*(D37*E37*F37*G37)","v":0},{"$f":"D37*E37*F37*G37","v":0},{"$f":"D37*E37*F37*G37","v":0}]
["Location d'équipements",null,"Coût réel",null,null,null,null,0,{"$f":"D38*E38*F38*G38","v":0},{"$f":"D38*E38*F38*G38","v":0}]
["Autres dépenses (à spécifier)",null,"Coût réel",null,null,null,null,0,0,0]
["Autres dépenses (à spécifier)",null,"Coût réel",null,null,null,null,{"$f":"0.14975*(D40*E40*F40*G40)","v":0},0,0]
["Autres dépenses (à spécifier)",null,"Coût réel",null,null,null,null,0,0,0]
["Dépenses liées à l'administration du projet par le promoteur"]
["Salaire de base de la ressource interne du promoteur",null,"Maximum de 90 000 $ annuellement par personne",null,null,null,null,null,{"$f":"D43*E43*F43*G43","v":0},{"$f":"D43*E43*F43*G43","v":0}]
["Déplacement de la ressource interne du promoteur",null,"Barèmes du Conseil du trésor",null,null,null,null,null,{"$f":"D44*E44*F44*G44","v":0},{"$f":"D44*E44*F44*G44","v":0}]
["Hébergement de la ressource interne du promoteur",null,"Barèmes du Conseil du trésor",null,null,null,null,{"$f":"0.14975*(D45*E45*F45*G45)","v":0},0,0]
["Frais d'administration (maximum 10 % du montant admissible)",null,null,null,null,null,null,null,{"$f":"SUM(I4:I45)*0.1","v":0},{"$f":"SUM(J4:J45)*0.1","v":0}]
["Taxes"]
["Remboursement des taxes admissibles",null,null,null,null,null,null,{"$f":"SUM(H4:H47)","v":0},{"$f":"H48*0.5","v":0},{"$f":"H48*0.5","v":0}]
["Total",null,null,null,null,null,null,null,{"$f":"SUM(I4:I48)","v":0},{"$f":"SUM(J4:J48)","v":0}]

{"sheet":"Promotion Normes","index":3,"n_rows":52,"n_cols":10,"rows_kept":52,"cut":false,"hidden":false,"merged":[[0,0,0,9],[3,0,3,1],[14,0,14,1]]}
["Budget de la demande de subvention - Titre du projet"]
["Nature de la dépense","Description de la dépense","Barèmes","Coût unitaire","Unité","Unité","Unité","Taxes (100 % des taxes)","Montant demandé","Montant proposé"]
["Élaboration ou adaptation des outils de promotion"]
["Honoraires et salaires pour l'élaboration ou l'adaptation des outils de formation"]
["Honoraires professionnels (à spécifier)",null,"Maximum de 150 $/h",null,null,null,null,{"$f":"0.14975*(D5*E5*F5*G5)","v":0},{"$f":"D5*E5*F5*G5","v":0},{"$f":"D5*E5*F5*G5","v":0}]
["Honoraires professionnels (à spécifier)",null,"Maximum de 150 $/h",null,null,null,null,0,{"$f":"D6*E6*F6*G6","v":0},{"$f":"D6*E6*F6*G6","v":0}]
["Honoraires professionnels (à spécifier)",null,"Maximum de 150 $/h",null,null,null,null,0,0,0]
["Honoraires professionnels (à spécifier)",null,"Maximum de 150 $/h",null,null,null,null,0,0,0]
["Honoraires professionnels (à spécifier)",null,"Maximum de 150 $/h",null,null,null,null,0,0,0]
["Honoraires professionnels et salaires compensatoires des experts",null,"Maximum de 150 $/h",null,null,null,null,null,0,0]
["Révision linguistique",null,"Coût réel",null,null,null,null,{"$f":"0.14975*(D11*E11*F11*G11)","v":0},0,0]
["Graphisme",null,"Coût réel",null,null,null,null,{"$f":"0.14975*(D12*E12*F12*G12)","v":0},0,0]
["Frais d'infographie",null,"Coût réel",null,null,null,null,{"$f":"0.14975*(D13*E13*F13*G13)","v":0},0,0]
["Diffusion"]
["Honoraires et salaires pour la diffusion des outils de formation"]
["Honoraires professionnels (à spécifier)",null,"Maximum de 150 $/h",null,null,null,null,{"$f":"0.14975*(D16*E16*F16*G16)","v":0},{"$f":"D16*E16*F16*G16","v":0},{"$f":"D16*E16*F16*G16","v":0}]
["Honoraires professionnels (à spécifier)",null,"Maximum de 150 $/h",null,null,null,null,0,{"$f":"D17*E17*F17*G17","v":0},{"$f":"D17*E17*F17*G17","v":0}]
["Honoraires professionnels (à spécifier)",null,"Maximum de 150 $/h",null,null,null,null,0,0,0]
["Honoraires professionnels (à spécifier)",null,"Maximum de 150 $/h",null,null,null,null,0,0,0]
["Honoraires professionnels (à spécifier)",null,"Maximum de 150 $/h",null,null,null,null,0,0,0]
["Honoraires professionnels et salaires compensatoires des experts",null,"Maximum de 150 $/h",null,null,null,null,null,0,0]
["Dépenses liées à la diffusion des outils de promotion"]
["Placement dans les réseaux sociaux",null,"Coût réel",null,null,null,null,{"$f":"0.14975*(D23*E23*F23*G23)","v":0},{"$f":"D23*E23*F23*G23","v":0},{"$f":"D23*E23*F23*G23","v":0}]
["Placement dans les médias traditionnels",null,"Coût réel",null,null,null,null,{"$f":"0.14975*(D24*E24*F24*G24)","v":0},{"$f":"D24*E24*F24*G24","v":0},{"$f":"D24*E24*F24*G24","v":0}]
["Participation à des événements (à spécifier)",null,"Coût réel",null,null,null,null,{"$f":"0.14975*(D25*E25*F25*G25)","v":0},0,0]
["Autres dépenses liées à la diffusion (à spécifier)",null,"Coût réel",null,null,null,null,{"$f":"0.14975*(D26*E26*F26*G26)","v":0},0,0]
["Autres dépenses liées à la diffusion (à spécifier)",null,"Coût réel",null,null,null,null,{"$f":"0.14975*(D27*E27*F27*G27)","v":0},0,0]
["Déplacement"]
["Déplacement des experts",null,"Barèmes du Conseil du trésor",null,null,null,null,null,{"$f":"D29*E29*F29*G29","v":0},{"$f":"D29*E29*F29*G29","v":0}]
["Autres frais de déplacement (à spécifier)",null,"Barèmes du Conseil du trésor",null,null,null,null,{"$f":"0.14975*(D30*E30*F30*G30)","v":0},{"$f":"D30*E30*F30*G30","v":0},{"$f":"D30*E30*F30*G30","v":0}]
["Autres frais de déplacement (à spécifier)",null,"Barèmes du Conseil du trésor",null,null,null,null,{"$f":"0.14975*(D31*E31*F31*G31)","v":0},0,0]
["Autres frais de déplacement (à spécifier)",null,"Barèmes du Conseil du trésor",null,null,null,null,{"$f":"0.14975*(D32*E32*F32*G32)","v":0},0,0]
["Hébergement"]
["Hébergement des experts ",null,"Barèmes du Conseil du trésor",null,null,null,null,{"$f":"0.14975*(D34*E34*F34*G34)","v":0},{"$f":"D34*E34*F34*G34","v":0},{"$f":"D34*E34*F34*G34","v":0}]
["Autres frais d'hébergement (à spécifier)",null,"Barèmes du Conseil du trésor",null,null,null,null,{"$f":"0.14975*(D35*E35*F35*G35)","v":0},{"$f":"D35*E35*F35*G35","v":0},{"$f":"D35*E35*F35*G35","v":0}]
["Matériel de promotion"]
["Matériel de promotion (à spécifier)",null,"Coût réel",null,null,null,null,{"$f":"0.14975*(D37*E37*F37*G37)","v":0},{"$f":"D37*E37*F37*G37","v":0},{"$f":"D37*E37*F37*G37","v":0}]
["Frais d'impression",null,"Coût réel",null,null,null,null,0,{"$f":"D38*E38*F38*G38","v":0},{"$f":"D38*E38*F38*G38","v":0}]
["Autres frais de matériel (à spécifier)",null,"Coût réel",null,null,null,null,0,0,0]
["Autres frais de matériel (à spécifier)",null,"Coût réel",null,null,null,null,0,0,0]
["Autres dépenses liées à la réalisation du projet "]
["Location de salle ou d'espace de kiosque incluant le matériel audiovisuel",null,"Coût réel",null,null,null,null,{"$f":"0.14975*(D42*E42*F42*G42)","v":0},{"$f":"D42*E42*F42*G42","v":0},{"$f":"D42*E42*F42*G42","v":0}]
["Location d'équipements",null,"Coût réel",null,null,null,null,{"$f":"0.14975*(D43*E43*F43*G43)","v":0},{"$f":"D43*E43*F43*G43","v":0},{"$f":"D43*E43*F43*G43","v":0}]
["Autres dépenses (à spécifier)",null,"Coût réel",null,null,null,null,0,0,0]
["Dépenses liées à l'administration du projet par le promoteur"]
["Salaire de base de la ressource interne du promoteur",null,"Maximum de 90 000 $ annuellement par personne",null,null,null,null,null,{"$f":"D46*E46*F46*G46","v":0},{"$f":"D46*E46*F46*G46","v":0}]
["Déplacement de la ressource interne du promoteur",null,"Barèmes du Conseil du trésor",null,null,null,null,null,{"$f":"D47*E47*F47*G47","v":0},{"$f":"D47*E47*F47*G47","v":0}]
["Hébergement de la ressource interne du promoteur",null,"Barèmes du Conseil du trésor",null,null,null,null,{"$f":"0.14975*(D48*E48*F48*G48)","v":0},0,0]
["Frais d'administration (maximum 10 % du montant admissible)",null,null,null,null,null,null,null,{"$f":"SUM(I5:I48)*0.1","v":0},{"$f":"SUM(J5:J48)*0.1","v":0}]
["Taxes"]
["Remboursement des taxes admissibles",null,null,null,null,null,null,{"$f":"SUM(H5:H50)","v":0},{"$f":"H51*0.5","v":0},{"$f":"H51*0.5","v":0}]
["Total",null,null,null,null,null,null,null,{"$f":"SUM(I5:I51)","v":0},{"$f":"SUM(J5:J51)","v":0}]

{"sheet":"RCMO","index":4,"n_rows":51,"n_cols":10,"rows_kept":51,"cut":false,"hidden":false,"merged":[[0,0,0,9],[2,0,2,1],[33,0,33,1]]}
["Budget de la demande de subvention - Titre du projet"]
["Nature de la dépense","Description de la dépense","Barèmes","Coût unitaire","Unité","Unité","Unité","Taxes (100 % des taxes)","Montant demandé","Montant proposé"]
["Élaboration ou révision des outils RCMO et validation des outils"]
["Honoraires professionnels pour l'élaboration des outils RCMO",null,"Maximum de 150 $/h",null,null,null,null,{"$f":"0.14975*(D4*E4*F4*G4)","v":0},{"$f":"D4*E4*F4*G4","v":0},{"$f":"D4*E4*F4*G4","v":0}]
["Honoraires professionnels pour la révision des outils RCMO",null,"Maximum de 150 $/h",null,null,null,null,{"$f":"0.14975*(D5*E5*F5*G5)","v":0},{"$f":"D5*E5*F5*G5","v":0},{"$f":"D5*E5*F5*G5","v":0}]
["Honoraires professionnels pour la validation des outils et la rédaction finale",null,"Maximum de 150 $/h",null,null,null,null,{"$f":"0.14975*(D6*E6*F6*G6)","v":0},0,0]
["Honoraires professionnels et salaires compensatoires des experts",null,"Maximum de 150 $/h",null,null,null,null,null,0,0]
["Révision linguistique",null,"Maximum de 150 $/h",null,null,null,null,{"$f":"0.14975*(D8*E8*F8*G8)","v":0},0,0]
["Graphisme",null,"Maximum de 150 $/h",null,null,null,null,{"$f":"0.14975*(D9*E9*F9*G9)","v":0},0,0]
["Frais d'infographie",null,"Maximum de 150 $/h",null,null,null,null,{"$f":"0.14975*(D10*E10*F10*G10)","v":0},0,0]
["Les frais encourus pour l’adaptation du matériel\nd'évaluation selon la nature du handicap",null,"Maximum de 150 $/h",null,null,null,null,{"$f":"0.14975*(D11*E11*F11*G11)","v":0},0,0]
["Formation des évaluateurs"]
["Honoraires professionnels pour la formation des évaluateurs",null,"Maximum de 150 $/h",null,null,null,null,{"$f":"0.14975*(D13*E13*F13*G13)","v":0},{"$f":"D13*E13*F13*G13","v":0},{"$f":"D13*E13*F13*G13","v":0}]
["Salaire de base des nouveaux évaluateurs",null,"Maximum de 150 $/h",null,null,null,null,null,{"$f":"D14*E14*F14*G14","v":0},{"$f":"D14*E14*F14*G14","v":0}]
["Évaluation des compétences des candidats"]
["Honoraires professionnels - Évaluation théorique",null,"Maximum de 150 $/h",null,null,null,null,{"$f":"0.14975*(D16*E16*F16*G16)","v":0},{"$f":"D16*E16*F16*G16","v":0},{"$f":"D16*E16*F16*G16","v":0}]
["Honoraires professionnels - Évaluation pratique",null,"Maximum de 150 $/h",null,null,null,null,{"$f":"0.14975*(D17*E17*F17*G17)","v":0},{"$f":"D17*E17*F17*G17","v":0},{"$f":"D17*E17*F17*G17","v":0}]
["Honoraires professionnels - Autres modes d'évaluation (à spécifier)",null,"Maximum de 150 $/h",null,null,null,null,{"$f":"0.14975*(D18*E18*F18*G18)","v":0},0,0]
["Salaire de base des participants - Évaluation théorique",null,"Maximum de 25 $/h",null,null,null,null,null,0,0]
["Salaire de base des participants - Évaluation pratique",null,"Maximum de 25 $/h",null,null,null,null,null,0,0]
["Salaire de base des participants - Autres modes d'évaluation",null,"Maximum de 25 $/h",null,null,null,null,null,0,0]
["Honoraires professionnels liés à l’accompagnement et à l’interprétation de la formation de personnes sourdes et malentendantes",null,"Maximum de 150 $/h",null,null,null,null,{"$f":"0.14975*(D22*E22*F22*G22)","v":0},0,0]
["Déplacement"]
["Déplacement des experts",null,"Barèmes du Conseil du trésor",null,null,null,null,null,{"$f":"D24*E24*F24*G24","v":0},{"$f":"D24*E24*F24*G24","v":0}]
["Déplacement du évaluateurs",null,"Barèmes du Conseil du trésor",null,null,null,null,null,{"$f":"D25*E25*F25*G25","v":0},{"$f":"D25*E25*F25*G25","v":0}]
["Déplacement des candidats évalués ",null,"Barèmes du Conseil du trésor",null,null,null,null,null,0,0]
["Autres frais de déplacement (à spécifier)",null,"Barèmes du Conseil du trésor",null,null,null,null,{"$f":"0.14975*(D27*E27*F27*G27)","v":0},0,0]
["Autres frais de déplacement (à spécifier)",null,"Barèmes du Conseil du trésor",null,null,null,null,{"$f":"0.14975*(D28*E28*F28*G28)","v":0},0,0]
["Hébergement"]
["Hébergement des experts",null,"Barèmes du Conseil du trésor",null,null,null,null,{"$f":"0.14975*(D30*E30*F30*G30)","v":0},{"$f":"D30*E30*F30*G30","v":0},{"$f":"D30*E30*F30*G30","v":0}]
["Hébergement des évaluateurs",null,"Barèmes du Conseil du trésor",null,null,null,null,{"$f":"0.14975*(D31*E31*F31*G31)","v":0},{"$f":"D31*E31*F31*G31","v":0},{"$f":"D31*E31*F31*G31","v":0}]
["Hébergement des candidats évalués ",null,"Barèmes du Conseil du trésor",null,null,null,null,{"$f":"0.14975*(D32*E32*F32*G32)","v":0},0,0]
["Autres frais d'hébergement (à spécifier)",null,"Barèmes du Conseil du trésor",null,null,null,null,{"$f":"0.14975*(D33*E33*F33*G33)","v":0},0,0]
["Matériel d'évaluation, achat de matières premières, etc."]
["Frais d'impression",null,"Coût réel",null,null,null,null,{"$f":"0.14975*(D35*E35*F35*G35)","v":0},{"$f":"D35*E35*F35*G35","v":0},{"$f":"D35*E35*F35*G35","v":0}]
["Achat de matières premières",null,"Coût réel",null,null,null,null,0,{"$f":"D36*E36*F36*G36","v":0},{"$f":"D36*E36*F36*G36","v":0}]
["Autres frais de matériel (à spécifier)",null,"Coût réel",null,null,null,null,0,0,0]
["Autres frais de matériel (à spécifier)",null,"Coût réel",null,null,null,null,0,0,0]
["Autres dépenses liées à la réalisation du projet "]
["Location de salle incluant le matériel audiovisuel",null,"Coût réel",null,null,null,null,{"$f":"0.14975*(D40*E40*F40*G40)","v":0},{"$f":"D40*E40*F40*G40","v":0},{"$f":"D40*E40*F40*G40","v":0}]
["Location d'équipements ou de matériel",null,"Coût réel",null,null,null,null,{"$f":"0.14975*(D41*E41*F41*G41)","v":0},{"$f":"D41*E41*F41*G41","v":0},{"$f":"D41*E41*F41*G41","v":0}]
["Autres dépenses (à spécifier)",null,"Coût réel",null,null,null,null,{"$f":"0.14975*(D42*E42*F42*G42)","v":0},0,0]
["Autres dépenses (à spécifier)",null,"Coût réel",null,null,null,null,0,0,0]
["Dépenses liées à l'administration du projet par le promoteur"]
["Salaire de base de la ressource interne du promoteur",null,"Maximum de 90 000 $ annuellement par personne",null,null,null,null,null,{"$f":"D45*E45*F45*G45","v":0},{"$f":"D45*E45*F45*G45","v":0}]
["Déplacement de la ressource interne du promoteur",null,"Barèmes du Conseil du trésor",null,null,null,null,null,{"$f":"D46*E46*F46*G46","v":0},{"$f":"D46*E46*F46*G46","v":0}]
["Hébergement de la ressource interne du promoteur",null,"Barèmes du Conseil du trésor",null,null,null,null,{"$f":"0.14975*(D47*E47*F47*G47)","v":0},0,0]
["Frais d'administration (maximum 10 % du montant admissible)",null,null,null,null,null,null,null,{"$f":"SUM(I4:I47)*0.1","v":0},{"$f":"SUM(J4:J47)*0.1","v":0}]
["Taxes"]
["Remboursement des taxes admissibles",null,null,null,null,null,null,{"$f":"0.5*SUM(H4:H48)","v":0},{"$f":"H50*0.5","v":0},{"$f":"H50*0.5","v":0}]
["Total",null,null,null,null,null,null,null,{"$f":"SUM(I4:I50)","v":0},{"$f":"SUM(J4:J50)","v":0}]

{"sheet":"Formation","index":5,"n_rows":56,"n_cols":10,"rows_kept":56,"cut":false,"hidden":false,"merged":[[0,0,0,9]]}
["Budget de la demande de subvention - Titre du projet"]
["Nature de la dépense","Description de la dépense","Barèmes","Coût unitaire","Unité","Unité","Unité","Taxes (100 % des taxes)","Montant demandé","Montant proposé"]
["Élaboration ou adaptation"]
["Honoraires professionnels pour l'élaboration du contenu de la formation ",null,"Maximum de 150 $/h",null,null,null,null,{"$f":"0.14975*(D4*E4*F4*G4)","v":0},{"$f":"D4*E4*F4*G4","v":0},{"$f":"D4*E4*F4*G4","v":0}]
["Honoraires professionnels pour l'adaptation de la formation ",null,"Maximum de 150 $/h",null,null,null,null,0,{"$f":"D5*E5*F5*G5","v":0},{"$f":"D5*E5*F5*G5","v":0}]
["Honoraires professionnels pour l'établissement des points d'ancrage avec le profil de compétences et les outils afférents",null,"Maximum de 150 $/h",null,null,null,null,0,0,0]
["Autres honoraires professionnels (à spécifier)",null,"Maximum de 150 $/h",null,null,null,null,0,0,0]
["Autres honoraires professionnels (à spécifier)",null,"Maximum de 150 $/h",null,null,null,null,0,0,0]
["Honoraires professionnels et salaires compensatoires des experts pour l'élaboration ou l'adaptation",null,"Maximum de 150 $/h",null,null,null,null,null,0,0]
["Déplacement des experts pour l'élaboration ou l'adaptation",null,"Barèmes du Conseil du trésor",null,null,null,null,null,0,0]
["Hébergement des experts pour l'élaboration ou l'adaptation",null,"Barèmes du Conseil du trésor",null,null,null,null,{"$f":"0.14975*(D11*E11*F11*G11)","v":0},0,0]
["Révision linguistique",null,"Coût réel",null,null,null,null,{"$f":"0.14975*(D12*E12*F12*G12)","v":0},0,0]
["Graphisme",null,"Coût réel",null,null,null,null,{"$f":"0.14975*(D13*E13*F13*G13)","v":0},0,0]
["Frais d'infographie",null,"Coût réel",null,null,null,null,{"$f":"0.14975*(D14*E14*F14*G14)","v":0},0,0]
["Les frais encourus pour l’adaptation du matériel pédagogique selon la nature du handicap",null,"Coût réel",null,null,null,null,{"$f":"0.14975*(D15*E15*F15*G15)","v":0},0,0]
["Diffusion"]
["Diffusion pour un groupe pilote"]
["Honoraires professionnels pour diffusion (groupe pilote)",null,"Maximum de 150 $/h",null,null,null,null,{"$f":"0.14975*(D18*E18*F18*G18)","v":0},{"$f":"D18*E18*F18*G18","v":0},{"$f":"D18*E18*F18*G18","v":0}]
["Salaire de base des participants (groupe pilote)",null,"Maximum de 150 $/h",null,null,null,null,null,{"$f":"D19*E19*F19*G19","v":0},{"$f":"D19*E19*F19*G19","v":0}]
["Déplacement des participants (groupe pilote)",null,"Barèmes du Conseil du trésor",null,null,null,null,null,0,0]
["Hébergement des participants (groupe pilote)",null,"Barèmes du Conseil du trésor",null,null,null,null,{"$f":"0.14975*(D21*E21*F21*G21)","v":0},0,0]
["Honoraires et salaires"]
["Honoraires professionnels pour la diffusion de la formation",null,"Maximum de 150 $/h",null,null,null,null,{"$f":"0.14975*(D23*E23*F23*G23)","v":0},{"$f":"D23*E23*F23*G23","v":0},{"$f":"D23*E23*F23*G23","v":0}]
["Honoraires professionnels pour le coaching",null,"Maximum de 150 $/h",null,null,null,null,{"$f":"0.14975*(D24*E24*F24*G24)","v":0},{"$f":"D24*E24*F24*G24","v":0},{"$f":"D24*E24*F24*G24","v":0}]
["Honoraires professionnels liés à l'accompagnement et à l'interprétation de la formation de personnes sourdes et malentendantes",null,"Maximum de 150 $/h",null,null,null,null,{"$f":"0.14975*(D25*E25*F25*G25)","v":0},0,0]
["Salaire de base des participants ",null,"Maximum de 25 $/h",null,null,null,null,null,0,0]
["Déplacement"]
["Déplacement du formateur",null,"Barèmes du Conseil du trésor",null,null,null,null,null,{"$f":"D28*E28*F28*G28","v":0},{"$f":"D28*E28*F28*G28","v":0}]
["Déplacement des participants (diffusion)",null,"Barèmes du Conseil du trésor",null,null,null,null,null,{"$f":"D29*E29*F29*G29","v":0},{"$f":"D29*E29*F29*G29","v":0}]
["Autres frais de déplacement (à spécifier)",null,"Barèmes du Conseil du trésor",null,null,null,null,{"$f":"0.14975*(D30*E30*F30*G30)","v":0},0,0]
["Autres frais de déplacement (à spécifier)",null,"Barèmes du Conseil du trésor",null,null,null,null,0,0,0]
["Hébergement"]
["Hébergement du formateur",null,"Barèmes du Conseil du trésor",null,null,null,null,{"$f":"0.14975*(D33*E33*F33*G33)","v":0},{"$f":"D33*E33*F33*G33","v":0},{"$f":"D33*E33*F33*G33","v":0}]
["Hébergement des participants (diffusion)",null,"Barèmes du Conseil du trésor",null,null,null,null,0,{"$f":"D34*E34*F34*G34","v":0},{"$f":"D34*E34*F34*G34","v":0}]
["Autres frais d'hébergement (à spécifier)",null,"Barèmes du Conseil du trésor",null,null,null,null,0,0,0]
["Matériel pédagogique"]
["Matériel pédagogique (à spécifier)",null,"Coût réel",null,null,null,null,{"$f":"0.14975*(D37*E37*F37*G37)","v":0},{"$f":"D37*E37*F37*G37","v":0},{"$f":"D37*E37*F37*G37","v":0}]
["Frais d'impression",null,"Coût réel",null,null,null,null,0,{"$f":"D38*E38*F38*G38","v":0},{"$f":"D38*E38*F38*G38","v":0}]
["Frais de tests de classement",null,"Coût réel",null,null,null,null,{"$f":"0.14975*(D39*E39*F39*G39)","v":0},0,0]
["Autres frais de matériel pédagogique (à spécifier)",null,"Coût réel",null,null,null,null,0,0,0]
["Autres frais de matériel pédagogique (à spécifier)",null,"Coût réel",null,null,null,null,0,0,0]
["Autres frais de matériel pédagogique (à spécifier)",null,"Coût réel",null,null,null,null,0,0,0]
["Équipement"]
["Location de salle incluant le matériel audiovisuel",null,"Coût réel",null,null,null,null,{"$f":"0.14975*(D44*E44*F44*G44)","v":0},{"$f":"D44*E44*F44*G44","v":0},{"$f":"D44*E44*F44*G44","v":0}]
["Frais d'utilisation d'une formation en ligne",null,"Coût réel",null,null,null,null,0,{"$f":"D45*E45*F45*G45","v":0},{"$f":"D45*E45*F45*G45","v":0}]
["Location d'équipements",null,"Coût réel",null,null,null,null,0,0,0]
["Autres dépenses liées à la réalisation du projet (à spécifier)",null,"Coût réel",null,null,null,null,0,0,0]
["Dépenses liées à l'administration du projet par le promoteur"]
["Salaire de base de la ressource interne du promoteur",null,"Maximum de 90 000 $ annuellement par personne",null,null,null,null,null,{"$f":"D49*E49*F49*G49","v":0},{"$f":"D49*E49*F49*G49","v":0}]
["Déplacement de la ressource interne du promoteur",null,"Barèmes du Conseil du trésor",null,null,null,null,null,{"$f":"D50*E50*F50*G50","v":0},{"$f":"D50*E50*F50*G50","v":0}]
["Hébergement de la ressource interne du promoteur",null,"Barèmes du Conseil du trésor",null,null,null,null,{"$f":"0.14975*(D51*E51*F51*G51)","v":0},0,0]
["Promotion (à spécifier)",null,"Coût réel",null,null,null,null,{"$f":"0.14975*(D52*E52*F52*G52)","v":0},0,0]
["Frais d'administration (maximum 10 % du montant admissible)",null,null,null,null,null,null,null,{"$f":"SUM(I4:I52)*0.1","v":0},{"$f":"SUM(J4:J52)*0.1","v":0}]
["Taxes"]
["Remboursement des taxes admissibles",null,null,null,null,null,null,{"$f":"SUM(H4:H52)","v":0},{"$f":"H55*0.5","v":0},{"$f":"H55*0.5","v":0}]
["Total",null,null,null,null,null,null,null,{"$f":"SUM(I4:I55)","v":0},{"$f":"SUM(J4:J55)","v":0}]

{"sheet":"Compagnon independant","index":6,"n_rows":8,"n_cols":10,"rows_kept":8,"cut":false,"hidden":false,"merged":[[0,0,0,9]]}
["Budget de la demande de subvention "]
["Activités du Cadre","Description de la dépense","Barèmes","Coût unitaire","Unité","Unité","Unité","Taxes (100 % des taxes)","Montant demandé","Montant proposé"]
["Honoraires professionnels",null,"Maximum de 150 $/h",null,null,null,null,{"$f":"0.14975*(D3*E3*F3*G3)","v":0},{"$f":"D3*E3*F3*G3","v":0},{"$f":"D3*E3*F3*G3","v":0}]
["Frais de déplacements",null,"Barèmes du Conseil du trésor",null,null,null,null,null,{"$f":"D4*E4*F4*G4","v":0},{"$f":"D4*E4*F4*G4","v":0}]
["Frais de repas ",null,"Barèmes du Conseil du trésor",null,null,null,null,0,0,0]
["Frais d'hébergement",null,"Barèmes du Conseil du trésor",null,null,null,null,0,0,0]
["Autres",null,"Coût réel",null,null,null,null,0,0,0]
["Total",null,null,null,null,null,null,null,{"$f":"SUM(I3:I7)","v":0},{"$f":"SUM(J3:J7)","v":0}]

{"sheet":"SOMMAIRE","index":7,"n_rows":9,"n_cols":3,"rows_kept":9,"cut":false,"hidden":false,"merged":[[0,0,0,2]]}
["Budget de la demande de subvention - Sommaire - Titre du projet"]
["Activités du Cadre","Montant demandé","Montant proposé"]
["Analyse de profession",{"$f":"'Analyse BES Études faisabilité'!I33","v":0},{"$f":"'Analyse BES Études faisabilité'!J33","v":0}]
["Norme professionnelle, stratégies PAMT ou hors PAMT",{"$f":"'Norme, PAMT ou hors PAMT'!I49","v":0},{"$f":"'Norme, PAMT ou hors PAMT'!J49","v":0}]
["RCMO",{"$f":"RCMO!I51","v":0},{"$f":"RCMO!J51","v":0}]
["Promotion",{"$f":"'Promotion Normes'!I52","v":0},{"$f":"'Promotion Normes'!J52","v":0}]
["Formation - Cadre",{"$f":"Formation!I53","v":0},{"$f":"Formation!J53","v":0}]
["Compagnon Indépendant",{"$f":"'Compagnon independant'!I8","v":0},{"$f":"'Compagnon independant'!J8","v":0}]
["Total",{"$f":"SUM(B3:B8)","v":0},{"$f":"SUM(C3:C8)","v":0}]

{"sheet":"Instructions","index":8,"n_rows":40,"n_cols":1,"rows_kept":40,"cut":false,"hidden":false,"merged":[[29,0,29,10],[25,0,25,10],[33,0,33,10],[30,0,30,10],[15,0,15,10],[14,0,14,10],[24,0,24,10],[28,0,28,10],[26,0,26,10],[27,0,27,10],[16,0,16,10],[18,0,18,10],[19,0,19,10],[20,0,20,10],[22,0,22,10],[21,0,21,10],[23,0,23,10],[0,0,0,10],[1,0,1,10],[9,0,9,10],[12,0,12,10],[13,0,13,10],[3,0,3,10],[5,0,5,10],[6,0,6,10],[7,0,7,10],[11,0,11,10],[40,0,40,10],[31,0,31,10],[34,0,34,10],[37,0,37,10],[38,0,38,10],[39,0,39,10],[35,0,35,10],[36,0,36,10],[32,0,32,10]]}
["Budget de la demande de subvention - Évolution - Normes professonnelles"]
[" Instructions"]
[]
["1. Utilisation des onglets "]
[]
["A. Choisir l'onglet approprié en fonction de l'activité visée par la demande de subvention."]
["B. Compléter dans l'onglet approprié le budget de la demande de subvention. Pour l'onglet FORMATION, si leprojet comprend la réalisation de plusieurs activités de formation, il faut compléter un budget distinct par formation. "]
["C. Les montants demandés et proposés sont reportés automatiquement dans l'onglet SOMMAIRE."]
[]
["1. Barèmes du programme "]
[]
["Coût réel: Lorsque le barème prévoit qu'il s'agit du coût réel, le caractère raisonnable de la dépense et l'effort du promoteur pour la recherche du meilleur prix seront pris en considération pour définir le coût admissible à la subvention.\n"]
["Honoraires professionnels des consultants et des experts : Selon la complexité des travaux à accomplir, le remboursement des dépenses pourrait atteindre 150 $ l’heure."]
["Salaire de base des participants à une formation ou à une évaluation : jusqu’à un maximum de 25 $ l’heure par participant."]
["Frais de déplacement et d’hébergement: Selon ce qui est le plus économique, le domicile ou le lieu de travail est déterminé comme point de départ de ce déplacement (jusqu’à 8 000 km : 0,635 $/km et plus de 8 000 km : 0,56 $/km)."]
[]
["2. Instructions pour compléter le budget de la demande de subvention"]
[]
["Colonne Nature de la dépense"]
["Les dépenses admissibles sont présentées par catégorie. Il est important de ne pas changer l'appellation des postes budgétaires."]
["Veuillez compléter seulement les lignes pour les postes budgétaires visés par votre demande de subvention. "]
[]
["Colonne Description de la dépense"]
["Décrire le détail des calculs en utilisant les unités de mesure appropriées. Voici des exemples:"]
[]
["Honoraires professionnels : 90 $/h x 16 h x 2 groupes"]
["Salaire de base des participants:13,10 $/h x 16 h x 12 participants"]
["Déplacement du formateur: 0,635 $/km x 600 km x 2 déplacements"]
[]
["Colonne Coût unitaire"]
["Inscrire le premier facteur de la multiplication présenté dans la colonne Description de la dépense pour chaque catégorie de dépense (Ex:  taux horaire des formateurs ou des participants, coût/participant pour le matériel pédagogique, coût/km pour les frais de déplacement, le coût/jour pour les frais d'hébergement et la location de salle, etc.). C'est le coût unitaire en $."]
[]
["Colonnes Unité"]
["Inscrire les autres facteurs de multiplication. Pour les cases vides, inscrire le chiffre 1."]
[]
["Colonne Taxes (100 % des taxes)"]
["Les taxes sont calculées automatiquement pour les dépenses taxables. La portion remboursable des taxes est calculée automatiquement à la ligne Remboursement des taxes admissibles. Il est présumé que le promoteur recevra un remboursement de Revenu Québec à hauteur de 50%. Ainsi, le montant prévu par l'aide financière est le montant restant à la charge du promoteur (50%). Si l'assujettissement de votre organisme diffère, ce taux peut être modifié selon les pièces présentées au soutien de votre demande.\nÀ la reddition de comptes de votre projet, il est attendu que le promoteur déclare son assujettissement à la TPS/TVH et à la TVQ. Le taux déclaré sera considéré pour déterminer les taxes admissibles à l'aide financière en permettant un dépassement du montant accordé jusqu'à concurrence du trop versé calculé pour le reste des postes budgétaires. Aucun montant supplémentaire à l’aide financière accordée ne pourra donc être spécifiquement versé pour rembourser l’ensemble des taxes; ce remboursement ne pourra être couvert que par l’aide financière accordée."]
[]
["Colonne Montant demandé"]
["Le montant demandé est calculé automatiquement en tenant compte du taux de remboursement applicable."]